bitfinex/quotes_SOLUSD_20241016
["timestamp","ask_amount","ask_price","bid_price","bid_amount"]
[1729047467867,30.0,154.91,154.88,16.1413]
[1729047468207,30.0,154.91,154.89,6.4561]
[1729047469492,20.0,154.93,154.89,6.4561]
[1729047475374,26.4545,154.93,154.89,6.4561]
[1729047482992,43.776884,154.92,154.85,6.4575]
[1729047483204,6.4566,154.88,154.84,22.6032]
[1729047483391,6.4566,154.88,154.84,16.145]
[1729047484210,30.0,154.87,154.84,16.145]
[1729047487009,36.457,154.87,154.83,6.4586]
[1729047487503,6.4575,154.86,154.81,16.1483]
[1729047487807,30.0,154.85,154.82,6.4591]
[1729047493110,30.0,154.85,154.81,22.6078]
[1729047493907,36.4581,154.85,154.81,16.1483]
[1729047495608,20.0,154.84,154.81,16.1483]
[1729047495811,30.0,154.83,154.81,16.1483]
[1729047500223,30.0,154.83,154.8,6.4598]
[1729047500524,30.0,154.83,154.79,6.4602]
[1729047501320,36.4591,154.83,154.78,22.6123]
[1729047502017,20.0,154.82,154.78,22.6123]
[1729047502224,30.0,154.81,154.78,22.6123]
[1729047503512,30.0,154.81,154.78,16.1516]
[1729047507232,30.0,154.81,154.78,22.6122]
[1729047511623,30.0,154.81,154.8,6.4599]
[1729047512010,20.0,154.83,154.8,6.4599]
[1729047513806,6.4582,154.84,154.81,6.4594]
[1729047513807,20.0,154.84,154.81,6.4594]
[1729047514026,30.0,154.82,154.78,16.1516]
[1729047514348,30.0,154.82,154.8,6.4598]
[1729047515946,30.0,154.82,154.81,6.4595]
[1729047516334,6.4575,154.86,154.82,6.4589]
[1729047517256,6.73432016,154.87,154.82,16.1472]
[1729047517432,90.46201815,154.91,154.82,11.53728812]
[1729047517643,15.2203,154.93,154.79,22.8822]
[1729047517644,6.4558,154.9,154.86,6.4573]
[1729047518548,6.4558,154.9,154.85,6.4578]
[1729047518751,20.0,154.89,154.85,6.4578]
[1729047518951,26.4562,154.89,154.85,6.4578]
[1729047519953,6.457,154.88,154.84,16.1451]
[1729047520748,6.457,154.87,154.81,16.1484]
[1729047520954,36.4576,154.86,154.81,22.6077]
[1729047521251,6.4578,154.85,154.81,16.1484]
[1729047521466,30.0,154.86,154.81,27.68568812]
[1729047521758,30.0,154.86,154.83,6.4585]
[1729047527464,30.0,154.86,154.81,27.68568812]
[1729047527761,6.4565,154.89,154.84,6.4582]
[1729047527762,20.0,154.88,154.84,6.4582]
[1729047528268,6.4565,154.89,154.84,6.4582]
[1729047529068,6.4566,154.88,154.84,6.4582]
[1729047538474,6.4574,154.86,154.82,6.4587]
[1729047538672,6.4574,154.86,154.81,22.6078]
[1729047539081,6.73445346,154.87,154.79,34.41948812]
[1729047539082,6.4582,154.84,154.79,6.46]
[1729047539254,6.4587,154.83,154.79,6.46]
[1729047540279,6.4583,154.84,154.79,6.46]
[1729047540652,6.4587,154.83,154.78,6.4607]
[1729047540867,93.776884,154.85,154.77,16.152]
[1729047541077,6.4592,154.82,154.77,22.6131]
[1729047543186,70.0,154.77,154.72,8.12482446]
[1729047543478,70.0,154.77,154.62,38.8723]
[1729047543479,20.0,154.73,154.65,16.1646]
[1729047543665,6.4642,154.7,154.65,16.1646]
[1729047544293,6.4645,154.69,154.64,0.25375]
[1729047544882,6.4654,154.67,154.64,0.25375]
[1729047545193,23.776884,154.71,154.64,0.25375]
[1729047545553,23.776884,154.66,154.64,0.25375]
[1729047545758,26.4662,154.65,154.64,0.25375]
[1729047546183,96.4662,154.65,154.64,0.25375]
[1729047546377,120.243084,154.65,154.64,0.25375]
[1729047547387,150.243084,154.65,154.64,0.25375]
[1729047549280,156.98324542,154.65,154.64,0.25375]
[1729047550682,173.76246024,154.65,154.64,0.25375]
[1729047550883,156.98324542,154.65,154.64,0.25375]
[1729047553265,56.74016142,154.65,154.64,0.25375]
[1729047554598,36.74016142,154.65,154.64,0.25375]
[1729047554773,30.0,154.65,154.64,0.25375]
[1729047556864,30.0,154.65,154.64,6.72035]
[1729047557470,6.4646,154.69,154.64,6.72035]
[1729047559190,6.73253163,154.71,154.66,6.4656]
[1729047559693,6.4641,154.7,154.65,22.6316]
[1729047562994,6.73253163,154.71,154.65,16.1654]
[1729047563200,13.19623163,154.71,154.66,6.4657]
[1729047578283,6.73253163,154.71,154.67,6.4652]
[1729047578513,6.73253163,154.71,154.65,16.1654]
[1729047578790,6.73253163,154.71,154.67,6.4653]
[1729047588015,6.73253163,154.71,154.65,16.1654]
[1729047588315,13.19643163,154.71,154.66,6.4657]
[1729047588818,6.73253163,154.71,154.65,16.1654]
[1729047589034,6.73253163,154.71,154.67,6.465]
[1729047597838,6.73253163,154.71,154.64,0.25375]
[1729047598013,6.73253163,154.71,154.68,6.4646]
[1729047598210,13.19623163,154.71,154.67,16.1626]
[1729047598414,13.19623163,154.71,154.67,22.6278]
[1729047600545,13.19623163,154.71,154.67,16.1626]
[1729047601046,6.73253163,154.71,154.67,22.6276]
[1729047603632,13.19643163,154.71,154.67,16.1626]
[1729047604144,13.19643163,154.71,154.67,22.6278]
[1729047604644,6.73253163,154.71,154.67,22.6278]
[1729047605015,6.73253163,154.71,154.68,6.4648]
[1729047605357,91.5538,154.82,154.7,11.57477306]
[1729047605650,13.19193921,154.8,154.75,6.4619]
[1729047607444,20.0,154.79,154.75,6.4619]
[1729047611146,20.0,154.79,154.74,16.1551]
[1729047611448,20.0,154.79,154.71,16.1591]
[1729047612147,6.462,154.75,154.68,6.2734]
[1729047612337,30.0,154.75,154.69,6.4644]
[1729047612532,30.0,154.75,154.7,6.464]
[1729047612753,36.462,154.75,154.7,6.464]
[1729047613248,36.462,154.75,154.69,6.4644]
[1729047613249,6.4625,154.74,154.69,6.4644]
[1729047614653,6.4631,154.73,154.68,16.162]
[1729047615045,6.4633,154.72,154.68,16.162]
[1729047615435,6.4633,154.72,154.67,6.4653]
[1729047620157,43.776884,154.73,154.65,16.1651]
[1729047620338,6.4643,154.7,154.65,16.1651]
[1729047620537,6.4643,154.7,154.66,6.4657]
[1729047625764,43.776884,154.73,154.66,6.4657]
[1729047626062,6.4637,154.71,154.66,6.4657]
[1729047626636,26.4629,154.73,154.68,6.4649]
[1729047626841,6.4633,154.72,154.68,6.4649]
[1729047627067,6.4633,154.72,154.67,6.4653]
[1729047632042,6.4633,154.72,154.68,6.4649]
[1729047632954,6.4633,154.72,154.67,6.4652]
[1729047633673,20.0,154.73,154.69,6.4644]
[1729047635362,26.4628,154.73,154.69,6.4644]
[1729047636749,6.71980976,154.74,154.7,6.4639]
[1729047636945,13.18230976,154.74,154.7,6.4639]
[1729047637165,6.4625,154.74,154.7,6.4639]
[1729047638551,6.4625,154.74,154.69,6.4644]
[1729047639746,6.4633,154.72,154.68,6.4648]
[1729047640287,6.4633,154.72,154.67,22.6277]
[1729047640469,70.0,154.74,154.64,16.42015]
[1729047640648,70.0,154.74,154.67,6.4653]
[1729047640649,6.4637,154.71,154.67,6.4653]
[1729047641477,20.0,154.73,154.67,6.4653]
[1729047641648,6.4633,154.72,154.67,6.4653]
[1729047643181,13.17965592,154.75,154.7,6.464]
[1729047643353,30.0,154.71,154.7,6.464]
[1729047643663,30.0,154.71,154.69,6.4644]
[1729047644246,6.4624,154.74,154.69,6.4644]
[1729047652263,6.4624,154.74,154.68,16.1617]
[1729047652264,6.4629,154.73,154.68,22.6266]
[1729047652754,20.0,154.73,154.64,27.99402306]
[1729047652956,70.0,154.74,154.64,22.88545]
[1729047652957,6.4645,154.69,154.64,22.88545]
[1729047653274,30.0,154.7,154.65,6.4659]
[1729047654567,30.0,154.68,154.65,6.4659]
[1729047656086,6.4643,154.7,154.65,6.4659]
[1729047660291,6.4643,154.7,154.66,6.4657]
[1729047661782,6.4646,154.69,154.65,6.4661]
[1729047663475,70.0,154.69,154.64,0.25375]
[1729047663682,20.0,154.68,154.64,0.25375]
[1729047663869,6.4657,154.67,154.64,0.25375]
[1729047664063,6.4661,154.66,154.64,0.25375]
[1729047664371,20.0,154.68,154.64,0.25375]
[1729047664568,150.243084,154.65,154.64,0.25375]
[1729047664768,56.4662,154.65,154.64,0.25375]
[1729047664976,50.0,154.65,154.64,0.25375]
[1729047665192,30.0,154.65,154.64,0.25375]
[1729047666298,20.0,154.68,154.64,6.72015]
[1729047666702,83.17510542,154.69,154.65,6.4659]
[1729047666703,6.71060542,154.69,154.65,6.4659]
[1729047666877,30.0,154.66,154.65,6.4659]
[1729047667276,13.17510542,154.69,154.65,6.4659]
[1729047668401,6.4662,154.65,154.64,0.25375]
[1729047668583,6.4658,154.66,154.64,0.25375]
[1729047670871,70.0,154.67,154.64,0.25375]
[1729047671091,6.4662,154.65,154.64,0.25375]
[1729047671494,36.4662,154.65,154.64,0.25375]
[1729047678918,30.0,154.65,154.64,0.25375]
[1729047679216,6.4654,154.67,154.64,0.25375]
[1729047680312,6.4654,154.67,154.65,0.359929]
[1729047680614,30.0,154.66,154.65,0.359929]
[1729047682409,56.4657,154.66,154.65,0.359929]
[1729047682616,80.242584,154.66,154.65,0.359929]
[1729047690529,70.0,154.62,154.56,6.4696]
[1729047690831,30.0,154.6,154.56,6.4696]
[1729047691198,36.4686,154.6,154.55,38.7118]
[1729047691706,36.4686,154.6,154.51,45.4196]
[1729047691707,70.0,154.58,154.51,45.4196]
[1729047691911,53.776884,154.57,154.51,45.4196]
[1729047692302,30.0,154.57,154.52,6.4714]
[1729047693521,30.0,154.57,154.54,6.4707]
[1729047693706,30.0,154.57,154.56,6.4699]
[1729047694131,76.4667,154.64,154.55,11.57477306]
[1729047694446,76.4667,154.64,154.59,6.4683]
[1729047694647,70.0,154.64,154.57,27.74777306]
[1729047694832,6.467,154.63,154.58,6.469]
[1729047698830,20.0,154.63,154.57,16.173]
[1729047699340,6.4675,154.62,154.57,22.6424]
[1729047699535,20.0,154.63,154.59,6.4686]
[1729047701761,83.18389895,154.64,154.59,6.4686]
[1729047701933,6.4679,154.61,154.57,16.173]
[1729047706252,20.0,154.63,154.57,27.74777306]
[1729047706456,83.18379895,154.64,154.59,6.4683]
[1729047707027,6.467,154.63,154.59,6.4683]
[1729047707636,6.467,154.63,154.58,6.4687]
[1729047712151,70.0,154.62,154.52,0.1]
[1729047712356,6.4683,154.6,154.55,6.4703]
[1729047713630,6.71783866,154.62,154.59,6.4683]
[1729047713840,76.4667,154.64,154.59,6.4683]
[1729047714038,76.4667,154.64,154.57,11.57477306]
[1729047714244,18.00407068,154.68,154.61,11.57477306]
[1729047714245,86.1612,154.68,154.61,11.57477306]
[1729047714456,86.1612,154.68,154.61,27.74397306]
[1729047714665,6.4654,154.67,154.62,6.4673]
[1729047714843,30.0,154.63,154.62,6.4673]
[1729047715161,6.4654,154.67,154.62,6.4673]
[1729047715659,6.4658,154.66,154.61,34.21147306]
[1729047716549,6.4658,154.66,154.61,27.74397306]
[1729047716770,20.0,154.67,154.62,6.4674]
[1729047717982,0.1,154.71,154.65,6.466]
[1729047717983,6.4641,154.7,154.65,6.466]
[1729047718182,30.0,154.66,154.65,6.466]
[1729047718751,6.4641,154.7,154.65,6.466]
[1729047721363,16.0569,154.71,154.64,16.1663]
[1729047721684,20.0,154.7,154.64,16.1663]
[1729047721853,6.4646,154.69,154.64,22.6326]
[1729047722191,20.0,154.7,154.64,16.1663]
[1729047722355,6.4654,154.67,154.62,6.4672]
[1729047724470,6.4657,154.66,154.62,6.4672]
[1729047725460,23.776884,154.68,154.62,6.4672]
[1729047725755,6.4641,154.7,154.65,6.4658]
[1729047726489,16.0569,154.71,154.67,22.6286]
[1729047726670,22.5206,154.71,154.67,16.1633]
[1729047733690,6.4629,154.73,154.69,6.4645]
[1729047734182,26.4624,154.74,154.69,6.4645]
[1729047734482,76.71160025,154.75,154.69,6.4645]
[1729047734483,6.71160025,154.75,154.7,11.57477306]
[1729047734658,22.1837,154.82,154.7,11.57477306]
[1729047734659,70.0,154.81,154.72,11.57477306]
[1729047734866,6.0358,154.82,154.74,27.73007306]
[1729047735062,70.0,154.81,154.74,27.73007306]
[1729047735255,76.4599,154.81,154.75,6.4616]
[1729047735455,6.4604,154.79,154.74,16.1553]
[1729047736360,20.0,154.79,154.74,22.6173]
[1729047736564,20.0,154.79,154.75,6.4617]
[1729047736773,20.0,154.79,154.74,16.1553]
[1729047737186,20.0,154.8,154.74,16.1553]
[1729047737790,6.4608,154.78,154.74,16.1553]
[1729047737996,6.4604,154.79,154.74,16.1553]
[1729047738774,20.0,154.8,154.75,6.4616]
[1729047738964,6.70892668,154.82,154.77,16.1529]
[1729047739176,6.4577,154.86,154.77,18.06679467]
[1729047739385,6.70926159,154.85,154.81,6.4595]
[1729047740378,6.70926159,154.85,154.8,16.1495]
[1729047740579,6.4589,154.83,154.78,6.4607]
[1729047742301,6.70926159,154.85,154.78,16.151]
[1729047742471,20.0,154.86,154.81,6.4591]
[1729047745801,6.4575,154.86,154.81,6.4591]
[1729047752297,90.0,154.85,154.77,6.3844]
[1729047752485,6.4595,154.81,154.76,6.4612]
[1729047753409,20.0,154.83,154.75,38.4604]
[1729047753410,36.4601,154.8,154.75,38.4604]
[1729047753582,30.0,154.8,154.76,6.4615]
[1729047753986,6.4595,154.81,154.76,6.4615]
[1729047754791,6.71315207,154.84,154.75,15.8438]
[1729047754992,6.71315207,154.84,154.78,16.1514]
[1729047755314,20.0,154.87,154.78,16.1514]
[1729047756012,22.71391888,154.88,154.78,16.1514]
[1729047756509,6.4578,154.86,154.81,6.4594]
[1729047758011,6.46,154.8,154.76,0.97555762]
[1729047758197,6.4602,154.8,154.75,22.3058]
[1729047758509,6.4596,154.81,154.76,6.4615]
[1729047759103,43.776884,154.82,154.74,16.1551]
[1729047759305,23.776884,154.8,154.74,16.1551]
[1729047759609,6.4609,154.78,154.74,16.1551]
[1729047760803,6.4609,154.78,154.73,6.4628]
[1729047761682,6.4604,154.79,154.74,6.4622]
[1729047763204,20.0,154.8,154.71,15.4508]
[1729047763908,6.4611,154.78,154.72,6.4629]
[1729047764201,6.4611,154.78,154.71,15.4508]
[1729047764419,6.4611,154.78,154.73,6.4627]
[1729047765095,20.0,154.81,154.72,18.06679467]
[1729047765799,22.9503,154.82,154.75,16.154]
[1729047766002,22.9503,154.82,154.77,6.4611]
[1729047767285,6.46,154.8,154.75,22.6156]
[1729047768001,6.71094166,154.84,154.75,16.154]
[1729047768314,6.4595,154.81,154.77,6.4608]
[1729047781208,6.71094166,154.84,154.76,18.06679467]
[1729047781410,6.71094166,154.84,154.81,6.4592]
[1729047781723,23.0375,154.86,154.81,6.4592]
[1729047781894,30.0,154.82,154.81,6.4592]
[1729047782295,30.0,154.82,154.79,16.1503]
[1729047782499,6.4584,154.84,154.79,22.6105]
[1729047783427,20.0,154.83,154.76,16.1539]
[1729047784017,6.4595,154.81,154.77,6.4611]
[1729047784395,20.0,154.83,154.77,6.4611]
[1729047784593,6.4606,154.79,154.74,6.4621]
[1729047785217,6.461,154.78,154.73,6.4628]
[1729047785723,6.4608,154.78,154.73,6.4627]
[1729047789016,6.4608,154.78,154.74,6.4624]
[1729047791528,6.4604,154.79,154.74,6.4624]
[1729047795527,16.2529,154.8,154.74,6.4624]
[1729047795725,6.4607,154.78,154.74,6.4624]
[1729047796805,16.2529,154.8,154.71,6.0084]
[1729047797009,16.2529,154.8,154.76,6.4616]
[1729047797322,22.713,154.8,154.75,6.4619]
[1729047798421,13.17041136,154.81,154.76,6.4614]
[1729047798622,6.71091136,154.81,154.77,6.461]
[1729047801737,6.4594,154.82,154.77,6.461]
[1729047802417,20.0,154.81,154.75,6.4617]
[1729047802616,6.46,154.8,154.75,6.4617]
[1729047802812,23.776884,154.82,154.75,6.4617]
[1729047803018,6.4603,154.79,154.75,6.4617]
[1729047804213,70.0,154.81,154.73,16.1569]
[1729047804514,6.4611,154.78,154.73,22.6194]
[1729047805038,6.4621,154.75,154.7,6.4637]
[1729047805247,6.4616,154.76,154.71,6.4636]
[1729047808018,6.462,154.75,154.7,6.464]
[1729047809225,30.0,154.74,154.69,16.1609]
[1729047809740,6.463,154.73,154.69,22.6253]
[1729047810050,36.4624,154.74,154.69,22.6253]
[1729047815055,6.4628,154.73,154.69,16.1609]
[1729047815646,6.4628,154.73,154.69,22.6254]
[1729047816830,30.0,154.72,154.69,22.6254]
[1729047817536,30.0,154.72,154.71,6.4637]
[1729047818251,6.4616,154.76,154.71,6.4637]
[1729047818944,29.3149867,154.78,154.72,6.4629]
[1729047819460,6.7115867,154.78,154.75,6.4617]
[1729047819634,6.4602,154.8,154.75,6.4617]
[1729047823858,6.4625,154.74,154.7,22.6238]
[1729047824154,6.4616,154.76,154.71,6.4636]
[1729047825052,70.0,154.8,154.69,18.06135352]
[1729047825253,70.0,154.8,154.74,6.4624]
[1729047825484,6.4607,154.79,154.74,6.4624]
[1729047828462,6.4602,154.8,154.75,6.4618]
[1729047829156,13.16941303,154.81,154.76,6.4614]
[1729047830865,6.70991303,154.81,154.77,6.461]
[1729047831061,85.7487,154.85,154.74,18.06135352]
[1729047831259,6.4589,154.83,154.79,6.4603]
[1729047831664,30.235184,154.84,154.79,6.4603]
[1729047832069,6.4588,154.83,154.78,6.4606]
[1729047834375,26.4591,154.82,154.77,6.4611]
[1729047834677,20.0,154.82,154.78,6.4607]
[1729047834880,6.4587,154.83,154.78,6.4607]
[1729047835565,23.776884,154.82,154.73,38.6333]
[1729047836163,6.4605,154.79,154.74,6.4623]
[1729047836351,26.4607,154.79,154.73,22.4839]
[1729047837959,6.4607,154.79,154.75,6.462]
[1729047838680,6.4607,154.79,154.74,6.4623]
[1729047838879,70.0,154.79,154.73,16.0211]
[1729047839061,6.4609,154.78,154.73,22.4838]
[1729047839261,6.4609,154.78,154.73,6.4627]
[1729047840273,6.4612,154.77,154.73,6.4627]
[1729047842568,92.8484,154.79,154.73,6.4627]
[1729047842978,6.4609,154.78,154.73,6.4627]
[1729047849787,22.8481,154.79,154.74,6.4623]
[1729047851387,6.70898,154.8,154.74,11.56216471]
[1729047851576,6.70898,154.8,154.79,6.4603]
[1729047851777,30.0,154.8,154.78,11.56216471]
[1729047851977,16.3877,154.84,154.78,6.4607]
[1729047852182,6.4587,154.83,154.78,6.4607]
[1729047853070,6.4598,154.81,154.76,16.1531]
[1729047853272,6.46,154.8,154.76,22.6146]
[1729047857189,6.4596,154.81,154.76,22.6146]
[1729047864806,6.70869203,154.83,154.75,18.06264097]
[1729047864986,6.70869203,154.83,154.78,16.1513]
[1729047865188,6.4582,154.85,154.8,6.4595]
[1729047865396,30.0,154.81,154.8,6.4595]
[1729047865882,6.70757978,154.87,154.83,6.4586]
[1729047866206,22.6993,154.88,154.83,6.4586]
[1729047870906,16.2424,154.88,154.82,16.1477]
[1729047871112,43.776884,154.87,154.77,15.651]
[1729047871299,6.4587,154.83,154.78,16.151]
[1729047871504,6.4587,154.83,154.79,6.4603]
[1729047871887,6.4582,154.84,154.79,6.4603]
[1729047872395,6.4587,154.83,154.78,22.6117]
[1729047872903,6.4587,154.83,154.79,6.4602]
[1729047873105,76.4577,154.86,154.78,16.151]
[1729047873289,26.4571,154.87,154.82,6.459]
[1729047873489,16.2424,154.88,154.82,6.459]
[1729047873698,16.2424,154.88,154.8,34.21154097]
[1729047873699,6.4566,154.88,154.83,6.4586]
[1729047874408,6.457,154.87,154.83,6.4586]
[1729047875412,6.457,154.87,154.82,6.459]
[1729047878614,6.457,154.87,154.83,6.4586]
[1729047884032,6.7067677,154.9,154.84,11.55052792]
[1729047884328,13.1625677,154.9,154.85,6.4578]
[1729047884527,13.1625677,154.9,154.79,32.5011]
[1729047884528,21.8416,154.92,154.86,11.55052792]
[1729047884700,15.3864,154.92,154.88,6.4565]
[1729047884895,21.8416,154.92,154.87,6.457]
[1729047885112,6.4554,154.91,154.87,6.457]
[1729047885312,6.4554,154.91,154.86,22.6002]
[1729047885626,6.4562,154.89,154.85,6.4578]
[1729047886126,6.4571,154.87,154.83,16.1462]
[1729047889723,20.0,154.9,154.85,6.4578]
[1729047889898,26.4561,154.9,154.85,6.4578]
[1729047891201,26.4554,154.91,154.86,6.457]
[1729047891510,6.4557,154.9,154.85,22.6015]
[1729047893611,20.0,154.91,154.83,6.4582]
[1729047894811,6.4566,154.88,154.83,6.4582]
[1729047895005,70.0,154.89,154.82,16.1473]
[1729047895328,70.0,154.89,154.82,22.6063]
[1729047895329,20.0,154.88,154.82,22.6063]
[1729047895901,20.0,154.88,154.8,11.55052792]
[1729047896233,6.4575,154.86,154.81,6.4594]
[1729047896411,6.4575,154.86,154.82,6.459]
[1729047896726,20.0,154.88,154.82,6.459]
[1729047896727,6.4571,154.87,154.82,6.459]
[1729047903733,70.0,154.86,154.79,15.7014]
[1729047903929,70.0,154.86,154.78,16.1514]
[1729047903930,86.559,154.86,154.78,16.1514]
[1729047904321,6.4592,154.82,154.78,16.1514]
[1729047905322,6.4592,154.82,154.78,22.6121]
[1729047905519,6.4587,154.83,154.78,22.6121]
[1729047906138,6.7475512,154.85,154.78,16.1514]
[1729047906336,6.4583,154.84,154.79,6.4603]
[1729047906935,13.2054512,154.85,154.81,6.4593]
[1729047907125,6.4579,154.85,154.81,6.4593]
[1729047907532,6.4579,154.85,154.8,6.4598]
[1729047910242,6.4579,154.85,154.78,16.1514]
[1729047910442,6.4579,154.85,154.81,6.4593]
[1729047913727,13.21206076,154.87,154.81,16.1487]
[1729047914330,6.75486076,154.87,154.81,16.1487]
[1729047914543,6.4567,154.88,154.83,6.4586]
[1729047915048,6.75399776,154.9,154.88,6.4566]
[1729047915249,6.75399776,154.9,154.89,6.4561]
[1729047915573,22.609,154.94,154.89,6.4561]
[1729047915725,70.0,154.92,154.84,6.4582]
[1729047915924,6.4561,154.89,154.84,6.4582]
[1729047916329,6.4558,154.9,154.85,6.4578]
[1729047920328,6.4558,154.9,154.86,0.354609]
[1729047925954,5.93933777,154.9,154.86,0.354609]
[1729047927534,26.457,154.87,154.86,0.354609]
[1729047928158,50.233884,154.87,154.86,0.354609]
[1729047936245,56.97412221,154.87,154.86,0.354609]
[1729047939257,57.07412221,154.87,154.86,0.354609]
[1729047941647,57.17412221,154.87,154.86,0.354609]
[1729047941848,6.4596,154.81,154.77,16.1526]
[1729047942366,6.4615,154.77,154.73,15.9234]
[1729047942672,6.4615,154.77,154.73,22.3862]
[1729047943665,20.0,154.81,154.74,11.56017695]
[1729047943848,26.4599,154.81,154.76,6.4615]
[1729047947752,6.4599,154.8,154.76,6.4615]
[1729047948171,6.4599,154.8,154.75,22.6169]
[1729047948486,6.4611,154.78,154.73,22.3858]
[1729047949257,6.4603,154.79,154.74,6.4624]
[1729047950160,20.0,154.81,154.73,15.9234]
[1729047950476,6.46,154.8,154.76,6.4616]
[1729047950771,26.4596,154.81,154.76,6.4616]
[1729047950972,20.0,154.81,154.77,6.4611]
[1729047951283,30.0,154.78,154.76,6.4615]
[1729047952050,26.4596,154.81,154.76,6.4615]
[1729047955382,26.4596,154.81,154.77,6.4611]
[1729047955560,6.4596,154.81,154.77,6.4611]
[1729047958474,6.4596,154.81,154.74,27.71547695]
[1729047958682,6.4596,154.81,154.76,6.4615]
[1729047959062,6.46,154.8,154.75,6.4619]
[1729047961381,76.74054616,154.82,154.74,27.71547695]
[1729047961563,26.4595,154.81,154.76,6.4612]
[1729047964256,6.4599,154.8,154.76,6.4612]
[1729047968386,26.4596,154.81,154.76,6.4612]
[1729047968678,6.46,154.8,154.76,6.4612]
[1729047969559,26.4595,154.81,154.76,6.4612]
[1729047971077,20.0,154.81,154.74,16.1553]
[1729047971392,6.4621,154.75,154.71,16.1589]
[1729047971895,20.0,154.75,154.68,6.346]
[1729047972076,6.4627,154.74,154.69,6.4644]
[1729047978683,6.463,154.73,154.68,22.6272]
[1729047978887,6.4634,154.72,154.68,16.1623]
[1729047979264,70.0,154.74,154.65,26.67187695]
[1729047979479,6.4642,154.7,154.65,49.30297695]
[1729047979877,36.4637,154.71,154.66,6.4657]
[1729047980280,36.4637,154.71,154.67,0.35461]
[1729047980890,6.4637,154.71,154.67,0.35461]
[1729047982290,6.4641,154.7,154.67,0.35461]
[1729047983394,70.0,154.7,154.67,0.35461]
[1729047983868,6.4649,154.68,154.67,0.35461]
[1729047984271,126.756884,154.68,154.67,0.35461]
[1729047984470,126.756884,154.68,154.52,11.56017695]
[1729047984471,20.0,154.61,154.52,11.56017695]
[1729047984691,6.4686,154.6,154.54,16.1768]
[1729047984876,20.0,154.61,154.54,27.73697695]
[1729047985197,20.0,154.62,154.57,6.4695]
[1729047985988,20.0,154.63,154.57,6.4695]
[1729047987279,26.467,154.63,154.57,6.4695]
[1729047988778,20.0,154.64,154.57,16.1733]
[1729047988984,6.4664,154.65,154.57,16.1733]
[1729047989792,70.0,154.66,154.61,6.4678]
[1729047990169,22.111,154.67,154.6,16.1705]
[1729047990170,15.6455,154.67,154.6,16.1705]
[1729047990401,70.0,154.7,154.63,16.1671]
[1729047991393,36.4645,154.69,154.64,6.4666]
[1729047991773,20.0,154.68,154.64,6.4666]
[1729047995495,36.4645,154.69,154.64,6.4666]
[1729047996573,30.0,154.69,154.63,16.1671]
[1729047996775,30.0,154.69,154.67,6.4651]
[1729047996993,30.0,154.69,154.68,6.4649]
[1729047997415,6.74482944,154.74,154.7,6.464]
[1729047997707,15.2827,154.75,154.7,6.464]
[1729047998275,20.0,154.74,154.7,6.464]
[1729048000779,26.4624,154.74,154.69,22.6257]
[1729048001576,26.4628,154.74,154.66,34.26702568]
[1729048003301,15.2827,154.75,154.7,6.464]
[1729048003302,6.462,154.75,154.7,6.464]
[1729048003493,20.0,154.77,154.69,16.1613]
[1729048003680,20.0,154.77,154.71,6.4636]
[1729048003681,20.0,154.75,154.71,6.4636]
[1729048006709,6.4626,154.74,154.69,22.6256]